[Event "Ostravsky Konik-A 2019"]
[Site "Ostrava"]
[Date "2019.04.28"]
[Round "2.1"]
[White "Sernecki, Franciszek"]
[Black "Boleslav, Petr"]
[Result "1-0"]
[ECO "B08"]
[WhiteElo "2259"]
[BlackElo "2032"]
[Annotator "NA"]
[PlyCount "47"]
[EventDate "2019.04.27"]
[EventType "swiss"]
[EventCountry "CZE"]
[SourceTitle "playchess.com"]
[Source "ChessBase"]
[SourceQuality "1"]
[TimeControl "40/5400+30:1800+30"]

1. e4 {[%emt 0:00:00]} d6 {[%emt 0:00:00]} 2. d4 {[%emt 0:01:02]} Nf6 {[%emt 0:00:00]} 3. Nc3 {[%emt 0:00:05]} g6 {[%emt 0:00:00]} 4. Nf3 {[%emt 0:04:39]} Bg7 {[%emt 0:00:00]} 5. Be2 {[%emt 0:00:22]} O-O {[%emt 0:00:21]} 6. O-O {[%emt 0:00:24]} c6 {[%emt 0:00:20]} 7. a4 {[%emt 0:04:41]} a5 {[%emt 0:01:25]} 8. e5 {[%emt 0:15:23]} Ne8 {[%emt 0:05:27]} 9. Bf4 {[%emt 0:07:48]} Na6 {[%emt 0:03:39]} 10. Qd2 {[%emt 0:09:31]} Nb4 {[%emt 0:02:47]} 11. Nd1 {[%emt 0:12:01]} dxe5 {[%emt 0:10:43]} 12. Bxe5 {[%emt 0:03:01]} Nd6 {[%emt 0:02:28]} 13. c3 {[%emt 0:06:38]} Nd5 {[%emt 0:02:20]} 14. Bxg7 {[%emt 0:00:48]} Kxg7 {[%emt 0:00:13]} 15. Ne3 {[%emt 0:01:48]} Nf6 $14 {[%emt 0:09:07]} 16. Ne5 {[%emt 0:05:50]} Be6 {[%emt 0:05:34]} 17. f4 {[%emt 0:04:46]} Nde4 {[%emt 0:22:22]} 18. Qc2 {[%emt 0:02:45]} Qb6 {[%emt 0:02:11]} 19. Bd3 {[%emt 0:08:15]} Bb3 {[%emt 0:04:18]} 20. Qe2 {[%emt 0:00:35]} Nd6 {[%emt 0:01:44]} 21. Ra3 {[%emt 0:01:38]} c5 {[%emt 0:02:21]} 22. dxc5 {[%emt 0:00:38]} Qxc5 {[%emt 0:00:38]} 23. Rxb3 {[%emt 0:00:25]} Nd5 {[%emt 0:00:52]} 24. Rf3 {[%emt 0:01:49]} 1-0

[Event "Ostravsky Konik-A 2019"]
[Site "Ostrava"]
[Date "2019.04.28"]
[Round "2.2"]
[White "Vesely, Libor"]
[Black "Pavera, Vit"]
[Result "1-0"]
[ECO "B34"]
[WhiteElo "2214"]
[BlackElo "2026"]
[Annotator "NA"]
[PlyCount "53"]
[EventDate "2019.04.27"]
[EventType "swiss"]
[EventCountry "CZE"]
[SourceTitle "playchess.com"]
[Source "ChessBase"]
[SourceQuality "1"]
[TimeControl "40/5400+30:1800+30"]

1. e4 {[%emt 0:00:00]} c5 {[%emt 0:00:00]} 2. Nf3 {[%emt 0:00:00]} Nc6 {[%emt 0:00:00]} 3. d4 {[%emt 0:00:06]} cxd4 {[%emt 0:00:00]} 4. Nxd4 {[%emt 0:00:07]} g6 {[%emt 0:00:00]} 5. Nc3 {[%emt 0:00:22]} Bg7 {[%emt 0:00:33]} 6. Be3 {[%emt 0:00:08]} Nf6 {[%emt 0:00:27]} 7. Be2 {[%emt 0:00:30]} O-O {[%emt 0:00:08]} 8. O-O {[%emt 0:01:13]} d5 {[%emt 0:04:43]} 9. exd5 {[%emt 0:01:03]} Nxd5 {[%emt 0:00:11]} 10. Nxd5 {[%emt 0:00:08]} Qxd5 {[%emt 0:00:10]} 11. Bf3 {[%emt 0:00:11]} Qd6 {[%emt 0:07:58]} 12. Nxc6 {[%emt 0:01:31]} bxc6 {[%emt 0:00:10]} 13. Qxd6 {[%emt 0:14:14]} exd6 {[%emt 0:00:05]} 14. Bxc6 {[%emt 0:00:20]} Rb8 {[%emt 0:00:19]} 15. Rab1 {[%emt 0:00:50]} Bf5 {[%emt 0:14:11] [#]} 16. b4 $16 {[%emt 0:08:28]} ({Much less strong is} 16. Bxa7 Rbc8 $14) 16... Rbc8 {[%emt 0:23:36]} 17. b5 {[%emt 0:02:19]} a6 {[%emt 0:00:14]} 18. Bb7 {[%emt 0:15:42]} Rxc2 {[%emt 0:00:10]} 19. bxa6 {[%emt 0:00:07]} Rxa2 {[%emt 0:00:05]} 20. Rbd1 {[%emt 0:02:50]} Bc8 {[%emt 0:06:30]} 21. Bxc8 {[%emt 0:06:15]} Rxc8 {[%emt 0:00:01]} 22. a7 {[%emt 0:00:24]} Be5 {[%emt 0:06:43]} 23. f4 {[%emt 0:07:32]} Re2 {[%emt 0:00:41]} 24. fxe5 {[%emt 0:00:39]} Rxe3 {[%emt 0:00:05]} 25. Rb1 {[%emt 0:00:39]} Rxe5 26. Rb8 Ree8 27. Rfb1 1-0

[Event "Ostravsky Konik-A 2019"]
[Site "Ostrava"]
[Date "2019.04.28"]
[Round "2.4"]
[White "Chlevistan, Jakub"]
[Black "Muzik, Martin"]
[Result "1/2-1/2"]
[ECO "A41"]
[WhiteElo "2047"]
[BlackElo "2160"]
[Annotator "NA"]
[PlyCount "101"]
[EventDate "2019.04.27"]
[EventType "swiss"]
[EventCountry "CZE"]
[SourceTitle "playchess.com"]
[Source "ChessBase"]
[SourceQuality "1"]
[TimeControl "40/5400+30:1800+30"]

1. Nf3 {[%emt 0:00:00]} d6 {[%emt 0:00:00]} 2. d4 {[%emt 0:00:00]} Bg4 {[%emt 0:00:03]} 3. e4 {[%emt 0:00:09]} Nf6 {[%emt 0:00:46]} 4. Nc3 {[%emt 0:00:24]} e6 {[%emt 0:00:33]} 5. h3 {[%emt 0:01:10]} Bh5 {[%emt 0:00:20]} 6. Be2 {[%emt 0:00:26]} Be7 {[%emt 0:01:47]} 7. O-O {[%emt 0:01:06]} d5 {[%emt 0:02:06]} 8. exd5 {[%emt 0:00:45]} Nxd5 {[%emt 0:04:36]} 9. Nxd5 {[%emt 0:06:01]} Qxd5 {[%emt 0:03:28]} 10. c4 {[%emt 0:03:04]} Qd6 {[%emt 0:03:06]} 11. Ne5 {[%emt 0:05:42]} Bxe2 {[%emt 0:03:17]} 12. Qxe2 {[%emt 0:00:02]} Nc6 {[%emt 0:11:01]} 13. Nxc6 {[%emt 0:07:46]} bxc6 {[%emt 0:05:50]} 14. Rd1 {[%emt 0:04:27]} O-O {[%emt 0:01:07]} 15. Qf3 {[%emt 0:05:11]} c5 {[%emt 0:02:58]} 16. dxc5 {[%emt 0:05:27]} Qxc5 {[%emt 0:00:34]} 17. b3 {[%emt 0:01:28]} Bf6 {[%emt 0:03:58]} 18. Be3 {[%emt 0:01:40]} Qa3 {[%emt 0:05:52]} 19. Bd4 {[%emt 0:01:44]} e5 {[%emt 0:01:11]} 20. Bc3 {[%emt 0:04:17]} e4 {[%emt 0:02:52]} 21. Qe3 {[%emt 0:03:29]} Bxc3 {[%emt 0:03:34]} 22. Qxc3 {[%emt 0:00:03]} Qe7 {[%emt 0:02:01]} 23. Rd5 {[%emt 0:09:05]} Rad8 {[%emt 0:06:45]} 24. Rad1 {[%emt 0:05:03]} f5 {[%emt 0:08:49]} 25. Qd4 {[%emt 0:07:38]} Rxd5 {[%emt 0:01:21]} 26. Qxd5+ {[%emt 0:01:01]} Kh8 {[%emt 0:05:13]} 27. Qd7 {[%emt 0:02:38]} Qe5 {[%emt 0:02:50]} 28. Rd5 {[%emt 0:03:27]} Qf4 {[%emt 0:01:48]} 29. g3 {[%emt 0:02:54]} Qc1+ {[%emt 0:02:02]} 30. Rd1 {[%emt 0:01:24]} Qc2 {[%emt 0:01:13]} 31. Qd2 {[%emt 0:07:29]} Qxd2 {[%emt 0:00:27]} 32. Rxd2 {[%emt 0:00:02]} Kg8 {[%emt 0:00:30]} 33. Rd5 {[%emt 0:00:50]} Rf7 {[%emt 0:02:22]} 34. c5 {[%emt 0:01:30]} g6 {[%emt 0:01:42]} 35. c6 {[%emt 0:01:28]} Kf8 {[%emt 0:04:08]} 36. Ra5 {[%emt 0:01:16]} Ke7 {[%emt 0:00:28]} 37. b4 {[%emt 0:00:23]} Kd6 {[%emt 0:00:19]} 38. b5 {[%emt 0:00:28]} Re7 {[%emt 0:02:52]} 39. Rxa7 {[%emt 0:01:38]} Re5 {[%emt 0:00:28]} 40. a4 {[%emt 0:01:03]} Rc5 {[%emt 0:01:02]} 41. Ra8 {[%emt 0:06:25]} Rc1+ {[%emt 0:01:57]} 42. Kg2 {[%emt 0:04:36]} Rc2 {[%emt 0:00:28]} 43. Kf1 {[%emt 0:01:28]} Ra2 {[%emt 0:05:13]} 44. Rd8+ {[%emt 0:06:48]} Kc5 {[%emt 0:01:04]} 45. Rd7 {[%emt 0:00:18]} Kb6 {[%emt 0:02:41]} 46. Rxh7 {[%emt 0:04:10]} Rxa4 {[%emt 0:00:30]} 47. Rg7 {[%emt 0:01:04]} Ra1+ {[%emt 0:01:58]} 48. Ke2 {[%emt 0:02:08]} Ra2+ {[%emt 0:00:12]} 49. Ke3 {[%emt 0:02:02]} Ra3+ {[%emt 0:00:15]} 50. Ke2 {[%emt 0:04:28]} Ra2+ {[%emt 0:00:09]} 51. Ke3 {[%emt 0:00:06]} 1/2-1/2

[Event "Ostravsky Konik-A 2019"]
[Site "Ostrava"]
[Date "2019.04.28"]
[Round "2.5"]
[White "Shilov, Sergej"]
[Black "Gnojek, Petr"]
[Result "0-1"]
[ECO "B81"]
[WhiteElo "2158"]
[BlackElo "2016"]
[Annotator "NA"]
[PlyCount "42"]
[EventDate "2019.04.27"]
[EventType "swiss"]
[EventCountry "CZE"]
[SourceTitle "playchess.com"]
[Source "ChessBase"]
[SourceQuality "1"]
[TimeControl "40/5400+30:1800+30"]

1. e4 {[%emt 0:00:00]} c5 {[%emt 0:00:00]} 2. Nf3 {[%emt 0:00:00]} d6 {[%emt 0:00:00]} 3. d4 {[%emt 0:00:34]} cxd4 {[%emt 0:00:02]} 4. Nxd4 {[%emt 0:00:16]} Nf6 {[%emt 0:00:12]} 5. Nc3 {[%emt 0:00:06]} e6 {[%emt 0:00:14]} 6. g4 {[%emt 0:00:35]} h6 {[%emt 0:00:12]} 7. g5 {[%emt 0:00:44]} hxg5 {[%emt 0:00:49]} 8. Bxg5 {[%emt 0:00:02]} Be7 {[%emt 0:01:39]} 9. Qd2 {[%emt 0:02:20]} a6 {[%emt 0:02:31]} 10. f4 {[%emt 0:06:39]} Nbd7 {[%emt 0:04:08]} 11. O-O-O {[%emt 0:01:49]} Qc7 {[%emt 0:01:16]} 12. h4 {[%emt 0:09:35]} b5 {[%emt 0:03:15]} 13. a3 {[%emt 0:02:04]} Bb7 {[%emt 0:01:54]} 14. Bg2 {[%emt 0:00:56]} Nb6 {[%emt 0:01:43]} 15. e5 {[%emt 0:04:46]} dxe5 {[%emt 0:02:25]} 16. fxe5 {[%emt 0:00:31]} Nc4 {[%emt 0:01:58]} 17. Qe2 {[%emt 0:00:49]} Nd7 {[%emt 0:03:16]} 18. Ndxb5 {[%emt 0:21:57]} axb5 {[%emt 0:00:12]} 19. Nxb5 {[%emt 0:00:02]} Qc5 {[%emt 0:00:38]} 20. Bxe7 {[%emt 0:03:24]} Qxb5 {[%emt 0:00:52]} 21. Bb4 {[%emt 0:00:57]} Qxb4 {[%emt 0:00:11]} 0-1

[Event "Ostravsky Konik-A 2019"]
[Site "Ostrava"]
[Date "2019.04.28"]
[Round "2.6"]
[White "Kalinowska, Zuzanna"]
[Black "Lys, Josef"]
[Result "1/2-1/2"]
[ECO "D11"]
[WhiteElo "2046"]
[BlackElo "2151"]
[Annotator "NA"]
[PlyCount "130"]
[EventDate "2019.04.27"]
[EventType "swiss"]
[EventCountry "CZE"]
[SourceTitle "playchess.com"]
[Source "ChessBase"]
[SourceQuality "1"]
[TimeControl "40/5400+30:1800+30"]

1. d4 {[%emt 0:00:00]} d5 {[%emt 0:00:34]} 2. c4 {[%emt 0:00:00]} c6 {[%emt 0:00:15]} 3. Nf3 {[%emt 0:00:03]} Nf6 {[%emt 0:00:54]} 4. e3 {[%emt 0:00:30]} g6 {[%emt 0:01:59]} 5. Nbd2 {[%emt 0:02:01]} Bg7 {[%emt 0:00:22]} 6. Bd3 {[%emt 0:00:20]} O-O {[%emt 0:00:13]} 7. O-O {[%emt 0:00:28]} Bg4 {[%emt 0:03:50] D70: Grünfeld: Unusual White 3rd moves (met by ...d5)} (7... Nbd7 8. b3 b6 9. a4 a5 10. e4 dxe4 11. Nxe4 Bb7 12. Bb2 c5 13. Re1 Rc8 14. Qe2 cxd4 15. Bxd4 Nc5 16. Bxc5 bxc5 {1-0 (59) Nakamura,H (2785)-Caruana,F (2808) Stavanger 2017}) 8. b3 {[%emt 0:02:26]} Re8 {[%emt 0:02:02]} 9. Bb2 {[%emt 0:00:43]} Nbd7 {[%emt 0:01:15]} 10. Qc2 {[%emt 0:05:41]} Bxf3 {[%emt 0:00:50]} 11. Nxf3 {[%emt 0:00:23]} e6 $146 {[%emt 0:02:48]} ({Predecessor:} 11... Rc8 12. Rad1 Qc7 {½-½ (22) Werner,A (2123)-Guenther,C (2115) Germany 2013}) 12. Rfe1 {[%emt 0:04:30]} Qc7 {[%emt 0:05:36]} 13. Rac1 {[%emt 0:10:30]} Rad8 {[%emt 0:04:18]} 14. b4 {[%emt 0:03:07]} Bf8 {[%emt 0:03:52]} 15. b5 {[%emt 0:05:22]} cxb5 {[%emt 0:02:38]} 16. cxd5 {[%emt 0:02:12]} Qxc2 {[%emt 0:00:31]} 17. Rxc2 {[%emt 0:00:11]} Nxd5 {[%emt 0:01:56]} 18. Bxb5 {[%emt 0:00:27]} a6 {[%emt 0:01:32]} 19. Bxd7 {[%emt 0:01:53]} Rxd7 {[%emt 0:00:15]} 20. Ne5 {[%emt 0:01:37]} Rc7 {[%emt 0:01:30]} 21. Rxc7 {[%emt 0:01:24]} Nxc7 {[%emt 0:01:06]} 22. Rc1 {[%emt 0:00:28]} Na8 {[%emt 0:00:50]} 23. Kf1 {[%emt 0:04:07]} Rd8 {[%emt 0:02:02]} 24. Ke2 {[%emt 0:03:39]} f6 {[%emt 0:07:37]} 25. Nd3 {[%emt 0:02:01]} Kf7 {[%emt 0:04:37]} 26. Nc5 {[%emt 0:05:29]} Rc8 {[%emt 0:06:59]} 27. Na4 {[%emt 0:02:29]} Rxc1 {[%emt 0:00:54]} 28. Bxc1 {[%emt 0:00:08]} b5 {[%emt 0:00:27]} 29. Nb2 {[%emt 0:00:49]} Nb6 {[%emt 0:06:30]} 30. Kd2 {[%emt 0:04:08]} Bd6 {[%emt 0:02:22]} 31. h3 {[%emt 0:01:26]} Ke7 {[%emt 0:00:15]} 32. Kc2 {[%emt 0:01:26]} e5 {[%emt 0:01:54]} 33. dxe5 {[%emt 0:02:03]} Bxe5 {[%emt 0:00:16]} 34. Nd3 {[%emt 0:00:11]} Bd6 {[%emt 0:00:19]} 35. Bd2 {[%emt 0:02:23]} Nc4 {[%emt 0:03:28]} 36. Bb4 {[%emt 0:02:29]} a5 {[%emt 0:00:39]} 37. Bc5 {[%emt 0:03:55]} Ke6 {[%emt 0:08:47]} 38. Kc3 {[%emt 0:08:47]} Kd5 {[%emt 0:08:33]} 39. Bxd6 {[%emt 0:02:57]} Nxd6 {[%emt 0:00:33]} 40. f3 {[%emt 0:00:53]} Nb7 {[%emt 0:08:59]} 41. e4+ {[%emt 0:34:03]} Kd6 {[%emt 0:30:47]} 42. Kd4 {[%emt 0:04:22]} Nd8 {[%emt 0:00:46]} 43. f4 {[%emt 0:05:17]} Ne6+ {[%emt 0:00:58]} 44. Kc3 {[%emt 0:02:31]} Kc6 {[%emt 0:00:00]} 45. g3 {[%emt 0:00:00]} Nc5 {[%emt 0:00:00]} 46. Nf2 {[%emt 0:00:00]} Na4+ {[%emt 0:00:00]} 47. Kd4 {[%emt 0:00:00]} b4 {[%emt 0:00:00]} 48. Nd1 {[%emt 0:00:00]} Nb6 {[%emt 0:00:00]} 49. Nb2 {[%emt 0:00:00]} Nc8 {[%emt 0:00:00]} 50. e5 {[%emt 0:00:00]} fxe5+ {[%emt 0:00:00]} 51. fxe5 {[%emt 0:00:00]} Ne7 {[%emt 0:03:45]} 52. Kc4 {[%emt 0:00:00]} Nd5 {[%emt 0:01:20]} 53. Na4 {[%emt 0:00:00]} Ne3+ {[%emt 0:00:54]} 54. Kd3 {[%emt 0:00:00]} Nf1 {[%emt 0:00:59]} 55. g4 {[%emt 0:00:00]} Kd5 {[%emt 0:00:09]} 56. Nb6+ {[%emt 0:02:20]} Kxe5 {[%emt 0:00:02]} 57. Nc4+ {[%emt 0:00:14]} Kd5 {[%emt 0:00:04]} 58. Nxa5 {[%emt 0:00:19]} Ng3 {[%emt 0:00:15]} 59. Nc4 {[%emt 0:02:28]} Ne4 {[%emt 0:00:21]} 60. Ne3+ {[%emt 0:00:17]} Ke5 {[%emt 0:00:47]} 61. Nd1 {[%emt 0:00:30]} Nd6 {[%emt 0:00:54]} 62. Ke3 {[%emt 0:02:07]} Kd5 {[%emt 0:00:38]} 63. Kd3 {[%emt 0:00:21]} Ne4 {[%emt 0:01:34]} 64. Ne3+ $11 {[%emt 0:00:39]} Ke5 {[%emt 0:00:39]} 65. Nd1 {[%emt 0:00:08]} Nd6 {[%emt 0:00:31] Ke4+} 1/2-1/2

[Event "Ostravsky Konik-A 2019"]
[Site "Ostrava"]
[Date "2019.04.28"]
[Round "2.7"]
[White "Janiszewski, Maciej"]
[Black "Stalmach, Richard"]
[Result "0-1"]
[ECO "B20"]
[WhiteElo "2145"]
[BlackElo "1991"]
[Annotator "NA"]
[PlyCount "74"]
[EventDate "2019.04.27"]
[EventType "swiss"]
[EventCountry "CZE"]
[SourceTitle "playchess.com"]
[Source "ChessBase"]
[SourceQuality "1"]
[TimeControl "40/5400+30:1800+30"]

1. e4 {[%emt 0:00:00]} c5 {[%emt 0:00:00]} 2. b3 {[%emt 0:00:00]} Nc6 {[%emt 0:00:20]} 3. Bb2 {[%emt 0:00:00]} d6 {[%emt 0:01:00]} 4. Bb5 {[%emt 0:04:59]} Bd7 {[%emt 0:01:01]} 5. f4 {[%emt 0:05:18]} Nf6 {[%emt 0:03:45]} 6. Qe2 {[%emt 0:02:55]} e6 {[%emt 0:04:10]} 7. Nf3 {[%emt 0:02:05]} Be7 {[%emt 0:00:35]} 8. c4 {[%emt 0:14:36]} a6 {[%emt 0:07:18]} 9. Bxc6 {[%emt 0:00:47]} Bxc6 {[%emt 0:00:55]} 10. Nc3 {[%emt 0:00:09]} Qc7 {[%emt 0:01:00]} 11. d4 {[%emt 0:01:59]} d5 {[%emt 0:03:36]} 12. cxd5 {[%emt 0:11:01]} exd5 {[%emt 0:01:47]} 13. e5 {[%emt 0:01:09]} Ne4 {[%emt 0:00:42]} 14. Nxe4 {[%emt 0:02:47]} dxe4 {[%emt 0:00:08]} 15. Nd2 {[%emt 0:00:27]} cxd4 {[%emt 0:04:06]} 16. Bxd4 {[%emt 0:04:28]} Rd8 {[%emt 0:02:01]} 17. Qe3 {[%emt 0:04:54]} Bb4 {[%emt 0:17:23]} 18. Rd1 {[%emt 0:27:28]} O-O {[%emt 0:14:39]} 19. O-O {[%emt 0:02:31]} Bb5 {[%emt 0:01:44]} 20. Bb6 {[%emt 0:00:55]} Qc2 {[%emt 0:03:10]} 21. Bxd8 {[%emt 0:05:43]} Bc5 {[%emt 0:00:20]} 22. Nc4 {[%emt 0:00:04]} Bxe3+ {[%emt 0:00:27]} 23. Nxe3 {[%emt 0:00:07]} Qc8 {[%emt 0:01:47]} 24. Be7 {[%emt 0:02:26]} Re8 {[%emt 0:01:01]} 25. Rc1 {[%emt 0:01:08]} Qe6 {[%emt 0:00:43]} 26. Bd6 {[%emt 0:00:24]} Bxf1 {[%emt 0:00:22]} 27. Rxf1 {[%emt 0:00:24]} Qc8 {[%emt 0:00:26]} 28. f5 {[%emt 0:02:14]} Qc3 {[%emt 0:01:11]} 29. Ng4 {[%emt 0:01:29]} h5 {[%emt 0:00:17]} 30. Nf2 {[%emt 0:00:14]} e3 {[%emt 0:00:36]} 31. Nd1 {[%emt 0:00:44]} Qd4 {[%emt 0:00:25]} 32. Re1 {[%emt 0:00:06]} e2+ {[%emt 0:00:06]} 33. Nf2 {[%emt 0:00:05]} Qd2 {[%emt 0:00:10]} 34. Bb4 {[%emt 0:00:25]} Qxb4 {[%emt 0:00:08]} 35. Rxe2 {[%emt 0:00:01]} Qd4 {[%emt 0:00:12]} 36. Re4 {[%emt 0:00:11]} Qa1+ {[%emt 0:00:05]} 37. Re1 {[%emt 0:00:05]} Qxe1# 0-1

[Event "Ostravsky Konik-A 2019"]
[Site "Ostrava"]
[Date "2019.04.28"]
[Round "2.8"]
[White "Nguyen, Thai Dai Vinh"]
[Black "Mica, Marek"]
[Result "0-1"]
[ECO "B11"]
[WhiteElo "1956"]
[BlackElo "2139"]
[Annotator "NA"]
[PlyCount "82"]
[EventDate "2019.04.27"]
[EventType "swiss"]
[EventCountry "CZE"]
[SourceTitle "playchess.com"]
[Source "ChessBase"]
[SourceQuality "1"]
[TimeControl "40/5400+30:1800+30"]

1. e4 {[%emt 0:00:00]} c6 {[%emt 0:00:00]} 2. Nc3 {[%emt 0:00:00]} d5 {[%emt 0:00:00]} 3. Nf3 {[%emt 0:00:00]} Bg4 {[%emt 0:00:00]} 4. h3 {[%emt 0:00:00]} Bxf3 {[%emt 0:00:09]} 5. Qxf3 {[%emt 0:00:00]} e6 {[%emt 0:00:22]} 6. d3 {[%emt 0:00:00]} Nf6 {[%emt 0:00:43]} 7. Bd2 {[%emt 0:01:09]} Nbd7 {[%emt 0:01:55]} 8. O-O-O {[%emt 0:00:44]} Qc7 {[%emt 0:00:47]} 9. g4 {[%emt 0:01:21]} h6 {[%emt 0:01:16]} 10. Bg2 {[%emt 0:01:28]} O-O-O {[%emt 0:00:35]} 11. Rhe1 {[%emt 0:18:37]} d4 {[%emt 0:27:58]} 12. Ne2 {[%emt 0:01:51]} c5 {[%emt 0:01:44]} 13. Kb1 {[%emt 0:07:55]} Bd6 {[%emt 0:03:31]} 14. Bh1 {[%emt 0:03:43]} Ne5 {[%emt 0:19:12]} 15. Qg2 {[%emt 0:01:58]} Ng6 {[%emt 0:01:49]} 16. g5 {[%emt 0:13:58]} Nh5 {[%emt 0:06:39]} 17. gxh6 {[%emt 0:07:36]} gxh6 {[%emt 0:00:08]} 18. Qf3 {[%emt 0:04:31]} Nhf4 {[%emt 0:03:35]} 19. Nxf4 {[%emt 0:01:56]} Bxf4 {[%emt 0:01:19]} 20. Bxf4 {[%emt 0:03:09]} Qxf4 {[%emt 0:02:22]} 21. e5 {[%emt 0:02:03]} Qxf3 {[%emt 0:01:16]} 22. Bxf3 {[%emt 0:00:04]} b6 {[%emt 0:03:35]} 23. Bh5 {[%emt 0:06:39]} Nf4 {[%emt 0:00:54]} 24. Bf3 {[%emt 0:07:36]} Nxh3 {[%emt 0:00:50]} 25. Rd2 {[%emt 0:01:25]} Kd7 {[%emt 0:02:30]} 26. Bg4 {[%emt 0:01:16]} Nf4 {[%emt 0:00:27]} 27. Re4 {[%emt 0:03:27]} Nd5 {[%emt 0:00:19]} 28. Rd1 {[%emt 0:03:06]} Rdg8 {[%emt 0:00:33]} 29. Bh3 {[%emt 0:01:40]} Ke7 {[%emt 0:00:20]} 30. a3 {[%emt 0:01:34]} Rg5 {[%emt 0:02:16]} 31. Rde1 {[%emt 0:02:03]} Rh5 {[%emt 0:01:07]} 32. Bg4 {[%emt 0:01:18]} Rh2 {[%emt 0:00:14]} 33. Rf1 {[%emt 0:01:25]} Rg8 {[%emt 0:00:17]} 34. Kc1 {[%emt 0:01:05]} Rg5 {[%emt 0:00:40]} 35. Bd1 {[%emt 0:01:08]} Rf5 {[%emt 0:02:24]} 36. Re2 {[%emt 0:01:24]} Nf4 {[%emt 0:01:04]} 37. Re4 {[%emt 0:00:31]} Ng6 {[%emt 0:00:22]} 38. f4 {[%emt 0:00:37]} Rh4 {[%emt 0:00:12]} 39. b4 {[%emt 0:00:33]} Rhxf4 {[%emt 0:00:27]} 40. Rfxf4 {[%emt 0:00:17]} Rxf4 {[%emt 0:00:15]} 41. Rxf4 {[%emt 0:30:30]} Nxf4 {[%emt 0:30:34]} 0-1

[Event "Ostravsky Konik-A 2019"]
[Site "Ostrava"]
[Date "2019.04.29"]
[Round "3.4"]
[White "Nehyba, Martin"]
[Black "Stalmach, Richard"]
[Result "1/2-1/2"]
[ECO "B08"]
[WhiteElo "2113"]
[BlackElo "1991"]
[Annotator "NA RC"]
[PlyCount "95"]
[EventDate "2019.04.27"]
[EventType "swiss"]
[EventCountry "CZE"]
[SourceTitle "playchess.com"]
[Source "ChessBase"]
[SourceQuality "1"]
[TimeControl "40/5400+30:1800+30"]

1. e4 {[%emt 0:00:00]} d6 {[%emt 0:00:00]} 2. Nc3 {[%emt 0:00:12]} Nf6 {[%emt 0:00:00]} 3. Nf3 {[%emt 0:00:13]} g6 {[%emt 0:00:00]} 4. d4 {[%emt 0:00:34]} Bg7 {[%emt 0:00:08]} 5. h3 {[%emt 0:00:18]} O-O {[%emt 0:00:25]} 6. Be3 {[%emt 0:00:10]} b6 {[%emt 0:01:38]} 7. Bd3 {[%emt 0:01:45]} Nc6 {[%emt 0:08:41]} 8. Qd2 {[%emt 0:08:52]} Bb7 {[%emt 0:01:29]} 9. Bh6 {[%emt 0:05:27]} Nb4 {[%emt 0:04:12]} 10. Bxg7 {[%emt 0:00:11]} Nxd3+ {[%emt 0:00:55]} 11. Qxd3 {[%emt 0:00:45]} Kxg7 {[%emt 0:00:12]} 12. O-O-O {[%emt 0:06:51]} c5 {[%emt 0:16:21]} 13. e5 {[%emt 0:18:28]} Nh5 {[%emt 0:16:19]} 14. dxc5 {[%emt 0:07:25]} bxc5 {[%emt 0:07:31]} 15. Qe3 {[%emt 0:08:56]} Qb6 {[%emt 0:02:15]} 16. Nd5 {[%emt 0:05:39]} Bxd5 {[%emt 0:05:10]} 17. Rxd5 {[%emt 0:00:02]} Rab8 {[%emt 0:05:24]} 18. b3 {[%emt 0:03:33]} c4 {[%emt 0:09:07]} 19. exd6 {[%emt 0:02:24]} Qxe3+ {[%emt 0:09:10]} 20. fxe3 {[%emt 0:00:01]} cxb3 {[%emt 0:00:09]} 21. axb3 {[%emt 0:00:26]} Rfd8 {[%emt 0:03:21]} 22. Rhd1 {[%emt 0:00:29]} Nf6 {[%emt 0:00:11]} 23. R5d4 {[%emt 0:00:13]} exd6 {[%emt 0:00:04]} 24. Rxd6 {[%emt 0:00:09]} Re8 {[%emt 0:01:54]} 25. Re1 {[%emt 0:04:06]} Rb7 {[%emt 0:00:04]} 26. Nd2 {[%emt 0:09:00]} Rbe7 {[%emt 0:01:49]} 27. Nc4 {[%emt 0:00:31]} Ne4 {[%emt 0:00:05]} 28. Ra6 {[%emt 0:00:18]} h5 {[%emt 0:01:52]} 29. Kb2 {[%emt 0:00:15]} Rb8 {[%emt 0:00:34]} 30. Rea1 {[%emt 0:00:37]} Rbb7 {[%emt 0:02:14]} 31. Na5 Rb6 32. Nc6 {[%emt 0:06:00]} Re6 {[%emt 0:00:04]} 33. Rxb6 {[%emt 0:00:05]} axb6 {[%emt 0:00:02]} 34. Nd4 {[%emt 0:00:07]} Rf6 {[%emt 0:00:49]} 35. Re1 {[%emt 0:01:52]} g5 {[%emt 0:01:36]} 36. g4 {[%emt 0:01:48]} Nf2 {[%emt 0:01:06]} 37. Nf5+ {[%emt 0:05:46]} Kg6 {[%emt 0:00:04]} 38. Ne7+ {[%emt 0:00:42]} Kg7 {[%emt 0:00:07]} 39. Nf5+ {[%emt 0:00:37]} Kg6 {[%emt 0:01:39]} 40. Ne7+ {[%emt 0:04:39]} Kh7 {[%emt 0:00:37]} 41. gxh5 {[%emt 0:11:47]} Nxh3 {[%emt 0:00:28]} 42. Nd5 {[%emt 0:06:24]} Rd6 {[%emt 0:01:18]} 43. c4 {[%emt 0:00:22]} Kh6 {[%emt 0:01:40]} 44. Rf1 {[%emt 0:00:15]} g4 {[%emt 0:07:46]} 45. e4 Kxh5 46. Rxf7 g3 47. Ne3 Rd2+ 48. Kc3 {[%emt 0:05:50]} 1/2-1/2